fUSD/lending_fUSD_20240327
["ID","MTS","AMOUNT","RATE_DAILY","PERIOD"]
[320725430,1711537838763,-2505.073525,0.000369,28]
[320725431,1711537838773,-500.0,0.00037,3]
[320725432,1711537838783,-462.49057848,0.00037084,2]
[320725433,1711537838793,-302.69610857,0.00037112,2]
[320725434,1711537838803,-387.56,0.000372,2]
[320725435,1711537838813,-1500.0,0.000374,28]
[320725436,1711537838823,-191.18,0.00037632,2]
[320725437,1711537838833,-337.37087437,0.00037635,4]
[320725438,1711537838843,-1000.0,0.00037857,2]
[320725439,1711537838853,-567.74,0.00037866,2]
[320725440,1711537838869,-1500.0,0.000379,28]
[320725441,1711537838879,-749.32,0.00038027,15]
[320725442,1711537838889,-229.83487879,0.00038236,10]
[320725443,1711537838900,-6928.72290161,0.00038347,2]
[320725444,1711537838911,-7754.62,0.00038356,60]
[320725445,1711537838922,-1500.0,0.000384,28]
[320725446,1711537838934,-155.0,0.000387,4]
[320725447,1711537838943,-183.71,0.000388,7]
[320725448,1711537838954,-400.28635015,0.0003888,2]
[320725449,1711537838964,-600.0,0.000389,120]
[320725450,1711537838974,-1500.0,0.000389,28]
[320725451,1711537838983,-550.0,0.00039,3]
[320725452,1711537838992,-3094.03,0.00039007,2]
[320725453,1711537839002,-400.0,0.00039137,2]
[320725454,1711537839012,-221.90580249,0.00039197,2]
[320725455,1711537839021,-217.6,0.00039231,120]
[320725456,1711537839032,-2749.00483996,0.00039236,2]
[320725457,1711537839042,-13951.20719775,0.00039236,3]
[320725458,1711537839052,-4000.0,0.00039236,3]
[320725459,1711537839061,-10024.87046969,0.00039236,3]
[320725460,1711537839071,-18910.34718355,0.00039236,3]
[320725461,1711537839080,-3827.55524853,0.00039236,3]
[320725462,1711537839090,-1000.0,0.00039243,2]
[320725463,1711537839099,-1000.0,0.00039243,2]
[320725464,1711537839109,-536.38658723,0.00039243,2]
[320725465,1711537839119,-655.95928479,0.00039244,17]
[320725466,1711537839130,-502.29976169,0.00039299,2]
[320725467,1711537839140,-150.0,0.00039299,2]
[320725468,1711537839150,-1022.0,0.00039449,3]
[320725469,1711537839159,-1008.10630562,0.00039458,30]
[320725470,1711537839170,-1000.0,0.00039458,30]
[320725471,1711537839180,-304.0,0.00039488,120]
[320725472,1711537839189,-302.69610857,0.00039516,2]
[320725473,1711537839199,-387.56,0.000396,7]
[320725474,1711537839208,-1150.78277578,0.00039616,10]
[320725475,1711537839218,-675.43651637,0.00039616,4]
[320725476,1711537839228,-930068.69230693,0.00039616,4]
[320725477,1711537839242,-128713.03198791,0.00039616,4]
[320725478,1711537839251,-944.68042446,0.00039616,120]
[320725479,1711537839261,-3218.11,0.00039931,2]
[320725480,1711537839271,-155.94263344,0.00039986,2]
[320725481,1711537839280,-9468.08172257,0.0004,7]
[320725482,1711537839289,-5743.01202704,0.0004,4]
[320725483,1711537839298,-7937.94912886,0.0004,4]
[320725484,1711537839308,-2385.94542606,0.0004,120]
[320725485,1711537839317,-4753.15701994,0.0004,4]
[320725486,1711537839326,-3357.71176501,0.0004,4]
[320725487,1711537839335,-1877.47970494,0.0004,30]
[320725488,1711537839345,-98865.32054666,0.0004,2]
[320725489,1711537839356,-567.74,0.0004013,2]
[320725490,1711537839366,-150.0,0.00040441,120]
[320725491,1711537839375,-1000.0,0.000406,15]
[320725492,1711537839386,-749.32,0.00040767,15]
[320725493,1711537839395,-152.38573111,0.00040808,9]
[320725494,1711537839405,-1000.0,0.000409,15]
[320725495,1711537839415,-7841.77272824,0.00041,4]
[320725496,1711537839426,-183.71,0.00041,7]
[320725497,1711537839435,-600.0,0.00041,3]
[320725498,1711537839445,-183.0,0.00041096,2]
[320725499,1711537839454,-1500.0,0.00041096,120]
[320725500,1711537839463,-6928.72290161,0.00041163,2]
[320725501,1711537839473,-1000.0,0.00041644,120]
[320725502,1711537839482,-567.74,0.00042394,2]
[320725503,1711537839492,-2373.57873937,0.00042434,2]
[320725504,1711537839500,-1285.98288985,0.00042524,2]
[320725505,1711537839510,-671.7010001,0.00042574,2]
[320725506,1711537839519,-400.0,0.00042695,2]
[320725507,1711537839529,-150.0,0.00042781,30]
[320725508,1711537839539,-217.6,0.00042797,120]
[320725509,1711537839548,-650.0,0.00043,3]
[320725510,1711537839558,-157.87,0.00043194,2]
[320725511,1711537839567,-157.87,0.00043248,2]
[320725512,1711537839577,-157.87,0.00043302,2]
[320725513,1711537839587,-157.87,0.00043356,2]
[320725514,1711537839597,-157.87,0.0004341,2]
[320725515,1711537839607,-749.32,0.00043507,15]
[320725516,1711537839617,-1335.83697461,0.00043546,4]
[320725517,1711537839626,-1321.62915071,0.00043546,4]
[320725518,1711537839635,-6928.72290161,0.00043978,2]
[320725519,1711537839645,-174.38,0.00044,7]
[320725520,1711537839656,-5000.0,0.00044,14]
[320725521,1711537839666,-269.83900737,0.00044444,7]
[320725522,1711537839676,-567.74,0.00044657,2]
[320725523,1711537839686,-183.71,0.000448,7]
[320725524,1711537839695,-22038.94073476,0.00045,4]
[320725525,1711537839705,-339.22517766,0.00045,10]
[320725526,1711537839713,-700.0,0.00045,3]
[320725527,1711537839723,-500.0,0.00045,14]
[320725528,1711537839733,-155.94263344,0.00045071,18]
[320725529,1711537839743,-712.61418707,0.00045355,4]
[320725530,1711537839753,-1521.35295712,0.000455,2]
[320725531,1711537839763,-12954.78,0.00045931,2]
[320725532,1711537839772,-300.78474529,0.00046,2]
[320725534,1711537839782,-500.0,0.00046099,7]
[320725535,1711537839791,-749.32,0.00046247,15]
[320725537,1711537839800,-152.38573111,0.00046715,32]
[320725538,1711537839810,-1035.44,0.00046718,2]
[320725539,1711537839819,-318.31,0.00046718,2]
[320725540,1711537839828,-152.76,0.00046718,2]
[320725541,1711537839837,-414.82,0.00046718,2]
[320725542,1711537839846,-151.35,0.00046718,2]
[320725543,1711537839856,-6928.72290161,0.00046794,2]
[320725545,1711537839868,-567.74,0.00046921,2]
[320725546,1711537839877,-1026.94712488,0.00047,2]
[320725548,1711537839886,-750.0,0.00047,3]
[320725550,1711537839895,-673.41,0.00047039,2]
[320725552,1711537839906,-1000.0,0.00047155,2]
[320725554,1711537839916,-183.71,0.000475,7]
[320725556,1711537839925,-387.56,0.000475,7]
[320725558,1711537839935,-157.05050259,0.00047534,30]
[320725559,1711537839946,-190.24451948,0.00047557,30]
[320725560,1711537839955,-636.50981946,0.00047692,30]
[320725561,1711537839965,-100000.0,0.00047919,7]
[320725563,1711537839975,-560.75087012,0.00048,4]
[320725565,1711537839984,-174.38,0.00048,7]
[320725567,1711537839993,-503.6111413,0.00048,100]
[320725568,1711537840003,-1000.0,0.00048,7]
[320725569,1711537840013,-163.60210769,0.00048025,30]
[320725570,1711537840023,-190.24451948,0.00048066,30]
[320725571,1711537840033,-190.24451948,0.00048161,30]
[320725572,1711537840043,-160.13519834,0.00048233,30]
[320725573,1711537840052,-160.13519834,0.00048272,30]
[320725574,1711537840064,-636.50981946,0.00048312,30]
[320725575,1711537840074,-150.0,0.00048499,7]
[320725576,1711537840084,-194533.82982586,0.000485,120]
[320725577,1711537840093,-190.24451948,0.00048516,30]
[320725578,1711537840103,-156.14444312,0.00048587,30]
[320725579,1711537840112,-1111.0,0.000487,4]
[320725580,1711537840123,-16721.08964175,0.000487,2]
[320725581,1711537840133,-1023.0,0.000487,117]
[320725582,1711537840143,-158.12704685,0.00048739,30]
[320725583,1711537840152,-18053.59407368,0.00048798,15]
[320725584,1711537840161,-150.0,0.00048799,7]
[320725585,1711537840170,-450610.50512565,0.000488,2]
[320725586,1711537840184,-563070.09517892,0.000488,2]
[320725587,1711537840193,-32767.37935355,0.000488,30]
[320725588,1711537840203,-387.55,0.000488,7]
[320725589,1711537840214,-162.12929693,0.00048842,30]
[320725590,1711537840225,-206.38069431,0.00048879,4]
[320725591,1711537840235,-150.0,0.00048879,7]
[320725592,1711537840246,-807845.65611516,0.0004888,2]
[320725593,1711537840258,-183.71,0.000489,7]
[320725594,1711537840269,-749.32,0.00048986,15]
[320725595,1711537840281,-40832.57684633,0.00049,10]
[320725596,1711537840291,-800.0,0.00049,3]
[320725597,1711537840302,-158.12704685,0.00049063,30]
[320725598,1711537840311,-636.50981946,0.00049131,30]
[320725599,1711537840321,-186.69469355,0.00049148,25]
[320725600,1711537840330,-567.74,0.00049185,2]
[320725601,1711537840340,-387.56,0.000492,7]
[320725602,1711537840350,-1000.0,0.00049248,30]
[320725603,1711537840359,-48900.42663219,0.00049249,10]
[320725604,1711537840370,-174.38,0.000493,7]
[320725605,1711537840380,-2000.0,0.00049315,30]
[320725606,1711537840389,-3073.0,0.00049315,120]
[320725608,1711537840399,-3119.0,0.00049315,120]
[320725610,1711537840408,-3119.0,0.00049315,120]
[320725613,1711537840419,-3120.0,0.00049315,120]
[320725615,1711537840429,-1331.16371984,0.00049326,120]
[320725616,1711537840438,-10000.0,0.00049389,30]
[320725617,1711537840447,-1497.35099439,0.00049446,120]
[320725618,1711537840456,-636.50981946,0.00049536,30]
[320725619,1711537840466,-2000.0,0.00049589,30]
[320725620,1711537840476,-6928.72290161,0.0004961,2]
[320725621,1711537840485,-1497.35099439,0.00049707,120]
[320725622,1711537840494,-190.24451948,0.00049717,30]
[320725623,1711537840503,-1331.16371984,0.00049842,120]
[320725624,1711537840513,-646.01,0.00049863,30]
[320725625,1711537840523,-297.48151904,0.0004989,120]
[320725626,1711537840533,-320599.80236976,0.000499,30]
[320725627,1711537840558,-17470.16916984,0.000499,30]
[320725628,1711537840597,-340583.93550821,0.000499,30]
[320725629,1711537840610,-554.84172397,0.000499,30]
[320725630,1711537840622,-273.76,0.000499,30]
[320725631,1711537841039,-406.24944498,0.000299,2]
[320725632,1711537841191,-2466.19731277,0.000299,2]
[320725633,1711537841201,-7171.27609023,0.000499,30]
[320725634,1711537841213,-372.20500039,0.000499,30]
[320725635,1711537841224,-1430.38151086,0.000499,30]
[320725636,1711537841236,-1053.88689234,0.000499,30]
[320725639,1711537843166,-249.0,0.00049131,120]
[320725640,1711537843176,-1256.31225658,0.000499,30]
[320725692,1711537846198,-4399.15494796,0.00022899,2]
[320725693,1711537846260,-2400.52859731,0.00022899,2]
[320725694,1711537898479,150.0,0.00039236,30]
[320725696,1711537898962,250.0,0.00039236,30]
[320725698,1711538117935,1069.71006447,0.00040605,120]
[320725699,1711538202029,150.0,0.00040605,30]
[320725700,1711538202414,250.0,0.00040605,30]
[320725702,1711538497031,150.0,0.00040578,30]
[320725703,1711538497363,250.0,0.00040578,30]
[320725704,1711538642031,-155.0,0.00022772,2]
[320725705,1711538642054,-214.80646049,0.00022773,2]
[320725706,1711538642076,-3066.08279134,0.00022773,2]
[320725707,1711538642101,-4556.89776575,0.00022774,2]
[320725708,1711538642123,-780.88336166,0.00022774,2]
[320725709,1711538642143,-4959.84843267,0.00022775,2]
[320725710,1711538642164,-500.0,0.00022775,2]
[320725711,1711538642184,-2167.17725752,0.00022776,2]
[320725712,1711538642205,-1218.58188732,0.00022776,2]
[320725713,1711538642230,-2380.72204325,0.00022875,2]
[320725714,1711538690566,-10557.61748168,0.00022772,2]
[320725715,1711538690587,-12442.38251832,0.00022773,2]
[320725716,1711538741533,-550.10279735,0.0002,2]
[320725717,1711538770359,-406.35993677,0.00022189,2]
[320725718,1711538770400,-984.28319094,0.00022559,2]
[320725719,1711538770433,-1463.99840658,0.00022875,2]
[320725720,1711538770468,-318.36271778,0.00022875,2]
[320725721,1711538770499,-125.47195473,0.00022899,2]
[320725722,1711538770532,-12295.8045823,0.00022989,2]
[320725723,1711538770563,-397.2807249,0.00022999,2]
[320725724,1711538770594,-1458.33568865,0.00022999,2]
[320725725,1711538796391,150.0,0.00040579,30]
[320725726,1711538796770,250.0,0.00040579,30]
[320725727,1711538829172,-475.26065538,0.00022999,2]
[320725728,1711538829194,-897.0,0.000249,2]
[320725729,1711538829223,-191.18,0.00029653,2]
[320725730,1711538829248,-499.99,0.00029899,2]
[320725731,1711538829270,-150.99,0.00029899,2]
[320725732,1711538829295,-162.7009,0.00029899,2]
[320725733,1711538829318,-2223.553088,0.00035101,2]
[320725734,1711538829339,-150.0,0.0003526,4]
[320725735,1711538829360,-712.61418707,0.00035277,4]
[320725736,1711538829382,-155.0,0.00035277,4]
[320725737,1711538829405,-559.67,0.00035385,2]
[320725738,1711538829426,-159.01991776,0.000369,28]
[320725739,1711538853086,-2346.05360724,0.000369,28]
[320725740,1711538853109,-46.73958069,0.00036956,15]
[320725741,1711538860638,373.35662799,0.00040579,120]
[320725751,1711539032109,-531.68,0.0003533,2]
[320725752,1711539032119,-150.07189346,0.000368,2]
[320725753,1711539032129,-167.33304932,0.00036874,2]
[320725754,1711539032138,-295.41221015,0.000369,2]
[320725755,1711539032148,-938.37870965,0.000369,4]
[320725756,1711539032157,-252.36931468,0.00036956,15]
[320725757,1711539032290,-450.21110463,0.00036956,15]
[320725758,1711539032300,-150.0,0.00036956,2]
[320725759,1711539032310,-119.68889537,0.00036974,2]
[320725760,1711539032370,-900.98,0.00036974,2]
[320725761,1711539032383,-2176.77110463,0.00036974,2]
[320725762,1711539032394,-3315.81190962,0.00036974,2]
[320725763,1711539032412,-3341.95,0.00036974,2]
[320725781,1711539033152,170.51,0.00016712,2]
[320725788,1711539038103,-335.24,0.00036974,2]
[320725789,1711539038162,-761.9355018,0.00036974,2]
[320725790,1711539038174,-1729.55783652,0.00036974,2]
[320725791,1711539038186,-10990.00001,0.00036974,2]
[320725792,1711539038272,-3425.50474206,0.00036974,2]
[320725793,1711539038283,-332.99,0.00037082,2]
[320725794,1711539038292,-250.0,0.00037125,2]
[320725795,1711539038302,-406.22,0.00037132,2]
[320725796,1711539038313,-301.32874502,0.00037163,2]
[320725797,1711539038326,-198.67125498,0.00037163,2]
[320725798,1711539038335,-673.42,0.00037173,2]
[320725799,1711539038345,-250.0,0.00037178,110]
[320725800,1711539038355,-176.52,0.00037182,120]
[320725801,1711539038364,-200.0,0.00037189,2]
[320725802,1711539038374,-166.37,0.00037232,2]
[320725803,1711539038384,-157.87,0.00037285,2]
[320725804,1711539038393,-200.0,0.00037325,2]
[320725805,1711539038403,-157.87,0.00037332,2]
[320725806,1711539038414,-309.29,0.00037341,2]
[320725807,1711539038423,-250.0,0.00037343,2]
[320725808,1711539038433,-157.87,0.00037378,2]
[320725809,1711539038442,-1500.0,0.000374,28]
[320725810,1711539038452,-157.87,0.00037425,2]
[320725812,1711539038461,-309.29,0.00037443,2]
[320725813,1711539038471,-157.87,0.00037471,2]
[320725814,1711539038480,-309.29,0.00037546,2]
[320725815,1711539038490,-531.68,0.00037594,2]
[320725816,1711539038499,-309.29,0.00037648,2]
[320725817,1711539038508,-309.29,0.00037751,2]
[320725818,1711539038518,-309.29,0.00037853,2]
[320725819,1711539038527,-1500.0,0.000379,28]
[320725820,1711539038537,-309.29,0.00037956,2]
[320725821,1711539038547,-309.29,0.00038058,2]
[320725822,1711539038557,-271.33680047,0.0003816,2]
[320725823,1711539038570,-37.95319953,0.0003816,2]
[320725824,1711539038579,-309.29,0.00038263,2]
[320725825,1711539038589,-1008.10630562,0.00038332,30]
[320725826,1711539038599,-2975.77281106,0.00038356,60]
[320725827,1711539038620,-4778.84718894,0.00038356,60]
[320725828,1711539038630,-309.29,0.00038365,2]
[320725829,1711539038639,-1521.35295712,0.000384,2]
[320725830,1711539038650,-1500.0,0.000384,28]
[320725831,1711539038660,-309.29,0.00038468,2]
[320725832,1711539038670,-309.29,0.0003857,2]
[320725833,1711539038679,-337.37087437,0.00038575,4]
[320725834,1711539038689,-223.87,0.00038582,2]
[320725835,1711539038699,-400.0,0.00038604,120]
[320725836,1711539038709,-309.29,0.00038672,2]
[320725837,1711539038718,-309.29,0.00038775,2]
[320725838,1711539038728,-1000.0,0.00038834,30]
[320725839,1711539038737,-309.29,0.00038877,2]
[320725840,1711539038747,-600.0,0.000389,120]
[320725841,1711539038756,-1500.0,0.000389,28]
[320725842,1711539038766,-13873.04993674,0.00038901,2]
[320725843,1711539038776,-8307.20924588,0.00038901,2]
[320725844,1711539038786,-309.29,0.0003898,2]
[320725845,1711539038796,-2500.0,0.00038998,2]
[320725846,1711539038805,-8326.6281,0.00038998,7]
[320725847,1711539038814,-3009.3926,0.00038998,120]
[320725848,1711539038824,-1000.0,0.00038998,2]
[320725849,1711539038834,-344.79623051,0.00038999,2]
[320725850,1711539038845,-167.33304931,0.00038999,2]
[320725851,1711539038855,-155.94263348,0.00038999,2]
[320725852,1711539038864,-302.09797902,0.00038999,14]
[320725853,1711539038875,-152.38573111,0.00038999,2]
[320725854,1711539038885,-3834.90530308,0.00038999,9]
[320725855,1711539038898,-911066.62826538,0.00039,12]
[320725856,1711539038907,-155.0,0.00039001,4]
[320725857,1711539038918,-344.79623047,0.00039024,2]
[320725858,1711539038929,-344.79623047,0.0003905,2]
[320725859,1711539038938,-4553.9112608,0.00039061,4]
[320725860,1711539038948,-344.79623047,0.00039075,2]
[320725861,1711539038957,-309.29,0.00039082,2]
[320725862,1711539038967,-1217.46787321,0.00039096,4]
[320725863,1711539038977,-2548.65974048,0.00039096,4]
[320725864,1711539038986,-540.74578905,0.00039096,4]
[320725865,1711539038995,-1000.0,0.00039096,2]
[320725866,1711539039004,-1462.92760708,0.00039096,4]
[320725867,1711539039013,-214.61837387,0.00039096,4]
[320725868,1711539039022,-2162.89736187,0.00039096,4]
[320725869,1711539039031,-7573.37685782,0.00039096,4]
[320725870,1711539039041,-155.0,0.00039096,4]
[320725871,1711539039050,-199.1757881,0.00039096,4]
[320725872,1711539039060,-1235.44561692,0.00039096,4]
[320725873,1711539039070,-23125.90277012,0.00039097,4]
[320725874,1711539039079,-916005.37081155,0.00039098,4]
[320725875,1711539039090,-2994.7016,0.00039099,2]
[320725876,1711539039100,-167183.0125,0.00039099,2]
[320725877,1711539039109,-5284.6488,0.00039099,2]
[320725878,1711539039119,-5388.5848,0.00039099,2]
[320725879,1711539039129,-344.79623047,0.000391,2]
[320725880,1711539039139,-392.23186262,0.000391,2]
[320725881,1711539039149,-2504.91271199,0.000391,2]
[320725882,1711539039158,-3007.06984741,0.000391,2]
[320725883,1711539039170,-171.8647512,0.000391,2]
[320725884,1711539039180,-150.5,0.0003917,15]
[320725885,1711539039189,-157.05050259,0.00039178,7]
[320725886,1711539039199,-150.5,0.0003918,15]
[320725887,1711539039208,-309.29,0.00039184,2]
[320725888,1711539039218,-150.5,0.0003919,15]
[320725889,1711539039229,-1335.83697461,0.00039197,4]
[320725890,1711539039239,-235.35674052,0.00039197,4]
[320725891,1711539039254,-548.84635004,0.00039197,4]
[320725892,1711539039264,-2756.88891822,0.00039197,4]
[320725893,1711539039274,-155.0,0.00039197,4]
[320725894,1711539039284,-485.65085822,0.00039197,4]
[320725895,1711539039294,-649.33286182,0.00039197,4]
[320725896,1711539039304,-155.0,0.00039197,4]
[320725897,1711539039314,-12150.0,0.00039197,4]
[320725898,1711539039324,-155.0,0.00039197,4]
[320725899,1711539039333,-265.90282322,0.00039197,4]
[320725900,1711539039343,-206.38069431,0.00039198,4]
[320725901,1711539039353,-3846.71319902,0.00039198,2]
[320725902,1711539039363,-1000.0,0.00039199,30]
[320725903,1711539039372,-150.0,0.00039199,2]
[320725904,1711539039382,-150.0,0.00039199,2]
[320725905,1711539039391,-3980627.0,0.000392,30]
[320725906,1711539039401,-156.95,0.000392,7]
[320725907,1711539039410,-171.45,0.000392,7]
[320725908,1711539039423,-387.55,0.000392,7]
[320725909,1711539039432,-150.0,0.00039235,2]
[320725910,1711539039443,-944.68042446,0.00039236,120]
[320725911,1711539039453,-1058781.72429484,0.00039236,4]
[320725912,1711539039463,-675.43651637,0.00039236,4]
[320725913,1711539039474,-1150.78277578,0.00039236,10]
[320725914,1711539039484,-10985.84684853,0.00039278,13]
[320725915,1711539039494,-309.29,0.00039287,2]
[320725916,1711539039503,-635.35303705,0.00039478,4]
[320725917,1711539039513,-229.83487879,0.00039578,11]
[320725918,1711539039523,-536.38658723,0.00039674,2]
[320725919,1711539039533,-1000.0,0.00039674,2]
[320725920,1711539039542,-749.32,0.00039696,15]
[320725921,1711539039552,-531.68,0.00039858,2]
[320725922,1711539039562,-406.22,0.00039872,2]
[320725923,1711539039572,-5743.01202704,0.0004,4]
[320725924,1711539039581,-4753.15701994,0.0004,4]
[320725925,1711539039590,-3357.71176501,0.0004,4]
[320725926,1711539039599,-1877.47970494,0.0004,30]
[320725927,1711539039620,-7937.94912886,0.0004,4]
[320725928,1711539039631,-2385.94542606,0.0004,120]
[320725929,1711539039641,-98865.32054666,0.0004,2]
[320725930,1711539039651,-150.0,0.00040169,2]
[320725931,1711539039663,-150.0,0.00040277,2]
[320725932,1711539039673,-502.29976169,0.00040277,2]
[320725933,1711539039686,-221.90580249,0.00040538,2]
[320725934,1711539039697,-1000.0,0.000406,15]
[320725935,1711539039707,-655.95928479,0.00040605,36]
[320725936,1711539039717,-13873.04993667,0.00040686,2]
[320725937,1711539039727,-8307.20924581,0.00040686,2]
[320725938,1711539039737,-10985.84684853,0.00040854,15]
[320725939,1711539039747,-1000.0,0.000409,15]
[320725940,1711539039757,-3834.90530304,0.00040971,10]
[320725941,1711539039766,-7841.77272824,0.00041,4]
[320725942,1711539039776,-1500.0,0.00041096,120]
[320725943,1711539039786,-183.0,0.00041096,2]
[320725944,1711539039795,-1022.0,0.00041285,3]
[320725945,1711539039806,-1739.73052406,0.00041391,6]
[320725946,1711539039816,-1739.73052406,0.00041391,6]
[320725947,1711539039826,-171.45,0.000414,7]
[320725948,1711539039835,-387.55,0.000414,7]
[320725949,1711539039845,-1000.0,0.00041644,120]
[320725950,1711539039855,-1000.0,0.00042077,2]
[320725951,1711539039865,-531.68,0.00042122,2]
[320725953,1711539039875,-10985.84684853,0.0004243,17]
[320725954,1711539039885,-749.32,0.00042436,15]
[320725955,1711539039895,-13873.04993667,0.00042471,2]
[320725956,1711539039907,-406.22,0.00042612,2]
[320725957,1711539039918,-3834.90530304,0.00042942,11]
[320725958,1711539039929,-155.94263344,0.00042991,9]
[320725959,1711539039940,-400.0,0.0004343,120]
[320725960,1711539039949,-152.38573111,0.0004395,21]
[320725961,1711539039959,-5000.0,0.00044,14]
[320725962,1711539039969,-156.95,0.00044,7]
[320725963,1711539039978,-10985.84684853,0.00044005,19]
[320725964,1711539039988,-13873.04993667,0.00044257,2]
[320725965,1711539039998,-12954.78,0.00044319,2]
[320725966,1711539040007,-1085.84,0.00044319,2]
[320725967,1711539040017,-531.68,0.00044386,2]
[320725968,1711539040026,-191.18,0.0004448,30]
[320725969,1711539040036,-387.55,0.000445,7]
[320725970,1711539040045,-1000.0,0.00044836,2]
[320725972,1711539040055,-3834.90530304,0.00044914,12]
[320725974,1711539040064,-22038.94073476,0.00045,4]
[320725975,1711539040073,-339.22517766,0.00045,10]
[320725977,1711539040083,-500.0,0.00045,14]
[320725979,1711539040093,-1000.0,0.00045,120]
[320725981,1711539040102,-171.86475117,0.00045135,120]
[320725982,1711539040112,-749.32,0.00045175,15]
[320725984,1711539040122,-10985.84684853,0.00045581,21]
[320725986,1711539040131,-171.45,0.000458,7]
[320725988,1711539040141,-13873.04993667,0.00046042,2]
[320725990,1711539040151,-414.82,0.00046261,2]
[320725991,1711539040160,-1035.44,0.00046261,2]
[320725993,1711539040172,-318.31,0.00046261,2]
[320725995,1711539040181,-152.76,0.00046261,2]
[320725996,1711539040191,-151.35,0.00046261,2]
[320725998,1711539040201,-531.68,0.0004665,2]
[320726000,1711539040211,-3834.90530304,0.00046885,13]
[320726002,1711539040221,-155.94263344,0.00046984,26]
[320726004,1711539040232,-392.23186261,0.00047,2]
[320726006,1711539040246,-3007.06984739,0.00047,2]
[320726007,1711539040255,-2504.91271197,0.00047034,2]
[320726008,1711539040266,-10985.84684853,0.00047157,23]
[320726009,1711539040275,-1000.0,0.00047337,2]
[320726010,1711539040286,-2062.68,0.00047451,120]
[320726011,1711539040295,-387.55,0.000475,7]
[320726013,1711539040305,-156.14444312,0.00047643,30]
[320726014,1711539040314,-190.24451948,0.00047667,30]
[320726015,1711539040328,-156.95,0.000477,7]
[320726016,1711539040339,-163.60210769,0.00047743,30]
[320726017,1711539040348,-163.57700478,0.00047812,30]
[320726018,1711539040358,-190.24451948,0.00047825,30]
[320726019,1711539040368,-13873.04993667,0.00047827,2]
[320726020,1711539040377,-156.14444312,0.00047854,30]
[320726021,1711539040387,-749.32,0.00047915,15]
[320726022,1711539040397,-100000.0,0.00047919,7]
[320726023,1711539040407,-560.75087012,0.00048,4]
[320726024,1711539040417,-503.6111413,0.00048,100]
[320726038,1711539040643,-1000.0,0.00048125,2]
[320726040,1711539040653,-171.45,0.000482,7]
[320726042,1711539040663,-3197.44,0.00048207,120]
[320726045,1711539040672,-400.0,0.00048255,120]
[320726047,1711539040682,-156.14444312,0.00048263,30]
[320726049,1711539040690,-636.50981946,0.00048268,30]
[320726051,1711539040699,-190.24451948,0.00048369,30]
[320726053,1711539040709,-152.97231096,0.00048557,30]
[320726055,1711539040718,-636.50981946,0.00048633,30]
[320726057,1711539040728,-16721.08964175,0.000487,2]
[320726059,1711539040737,-1111.0,0.000487,4]
[320726061,1711539040747,-150.0,0.00048732,7]
[320726063,1711539040755,-10985.84684853,0.00048733,24]
[320726064,1711539040764,-18053.59407368,0.00048798,10]
[320726065,1711539040774,-156.95,0.000488,7]
[320726066,1711539040783,-387.55,0.000488,7]
[320726067,1711539040793,-636.50981946,0.00048844,30]
[320726068,1711539040802,-3834.90530304,0.00048857,13]
[320726069,1711539040811,-156.14444312,0.00048875,30]
[320726070,1711539040820,-152.38573111,0.00048902,40]
[320726071,1711539040830,-531.68,0.00048914,2]
[320726072,1711539040840,-156.14444312,0.00048994,30]
[320726073,1711539040849,-727.92172,0.0004911,45]
[320726074,1711539040858,-200.0,0.00049213,30]
[320726075,1711539040867,-156.14444312,0.00049258,30]
[320726076,1711539040876,-171.45,0.000493,7]
[320726077,1711539040886,-3399.89300546,0.000493,2]
[320726078,1711539040895,-2000.0,0.00049315,30]
[320726079,1711539040905,-1000.0,0.00049315,120]